bitfinex/quotes_BTCUSD_20250422
["timestamp","ask_amount","ask_price","bid_price","bid_amount"]
[1745340866244,0.001,90704.0,90701.0,0.22050399]
[1745340866453,0.003,90704.0,90700.0,0.22050695]
[1745340866668,0.001,90704.0,90702.0,0.22050184]
[1745340867157,0.004,90704.0,90703.0,0.001]
[1745340867340,0.003,90704.0,90703.0,0.001]
[1745340867769,0.005,90704.0,90703.0,0.001]
[1745340867981,0.003,90704.0,90703.0,0.001]
[1745340868179,0.001,90712.0,90704.0,0.22049627]
[1745340868414,0.1,90709.0,90706.0,0.22049144]
[1745340868631,0.1,90709.0,90705.0,0.22049399]
[1745340869093,0.1,90709.0,90704.0,0.22049627]
[1745340869736,0.104,90709.0,90706.0,0.001]
[1745340870152,0.1,90709.0,90704.0,0.001]
[1745340870362,0.1,90709.0,90705.0,0.22049479]
[1745340870781,0.1,90709.0,90704.0,0.22049627]
[1745340870992,0.105,90709.0,90705.0,0.22049392]
[1745340871402,0.103,90709.0,90705.0,0.22049392]
[1745340871620,0.107,90709.0,90705.0,0.22049392]
[1745340871852,0.107,90709.0,90704.0,0.001]
[1745340872291,0.104,90709.0,90703.0,0.2204991]
[1745340872498,0.108,90709.0,90705.0,0.001]
[1745340872720,0.108,90709.0,90703.0,0.2204991]
[1745340872941,0.104,90709.0,90703.0,0.2204991]
[1745340873111,0.107,90709.0,90704.0,0.001]
[1745340873363,0.104,90709.0,90701.0,0.22050456]
[1745340873554,0.104,90709.0,90702.0,0.2205013]
[1745340873796,0.1,90709.0,90702.0,0.2205013]
[1745340874025,0.103,90709.0,90702.0,0.2205013]
[1745340874234,0.103,90709.0,90700.0,0.22050524]
[1745340874407,0.103,90709.0,90701.0,0.22050435]
[1745340874724,0.104,90709.0,90705.0,0.001]
[1745340875028,0.103,90709.0,90701.0,0.22050348]
[1745340875237,0.106,90709.0,90702.0,0.001]
[1745340875451,0.006,90709.0,90705.0,0.22049324]
[1745340875651,0.006,90709.0,90704.0,0.22049677]
[1745340875859,0.109,90709.0,90702.0,0.22050156]
[1745340876011,0.0110245,90707.0,90688.0,0.01102681]
[1745340876210,0.01102438,90708.0,90701.0,0.001]
[1745340876413,0.34050971,90709.0,90701.0,0.001]
[1745340876589,0.109,90709.0,90701.0,0.001]
[1745340876801,0.12002426,90709.0,90701.0,0.001]
[1745340877227,0.106,90709.0,90701.0,0.22150244]
[1745340877454,0.106,90709.0,90704.0,0.22049614]
[1745340877648,0.103,90709.0,90703.0,0.22049765]
[1745340878300,0.101,90709.0,90704.0,0.22049663]
[1745340878510,0.104,90709.0,90705.0,0.22049489]
[1745340878923,0.104,90709.0,90698.0,0.0110256]
[1745340878924,0.103,90709.0,90698.0,0.0110256]
[1745340879149,0.104,90709.0,90706.0,0.2204906]
[1745340879367,0.103,90709.0,90704.0,0.22049565]
[1745340879571,0.103,90709.0,90708.0,0.22048771]
[1745340879820,0.105,90709.0,90708.0,0.22048771]
[1745340880074,0.102,90709.0,90708.0,0.22048771]
[1745340880290,0.105,90709.0,90708.0,0.22048771]
[1745340880710,0.102,90709.0,90708.0,0.22048771]
[1745340881164,0.104,90709.0,90708.0,0.22048771]
[1745340881376,0.004,90709.0,90708.0,0.22048771]
[1745340881602,0.007,90709.0,90708.0,0.22048771]
[1745340881761,0.004,90709.0,90708.0,0.22048771]
[1745340882083,0.007,90709.0,90708.0,0.22048771]
[1745340882540,0.004,90709.0,90708.0,0.22048771]
[1745340882741,0.005,90709.0,90708.0,0.22048771]
[1745340882939,0.001,90709.0,90708.0,0.22048771]
[1745340883149,0.003,90709.0,90708.0,0.22048771]
[1745340883523,0.001,90709.0,90708.0,0.22048771]
[1745340883732,0.001,90709.0,90708.0,0.22269232]
[1745340883934,0.0117917,90719.0,90713.0,0.22047355]
[1745340884164,0.1,90717.0,90716.0,0.22046827]
[1745340884319,0.1,90717.0,90715.0,0.22047013]
[1745340884499,0.1,90717.0,90716.0,0.22046827]
[1745340885018,0.1,90717.0,90715.0,0.22047013]
[1745340885213,0.102,90717.0,90715.0,0.22047013]
[1745340885565,0.102,90717.0,90715.0,4.602e-05]
[1745340886957,0.105,90717.0,90715.0,4.602e-05]
[1745340887336,0.108,90717.0,90715.0,4.602e-05]
[1745340887952,0.108,90717.0,90715.0,0.22051655]
[1745340888554,0.108,90717.0,90716.0,0.22046827]
[1745340889472,0.103,90717.0,90716.0,0.22046827]
[1745340890092,0.108,90717.0,90716.0,0.22046827]
[1745340890717,0.105,90717.0,90716.0,0.22046827]
[1745340890930,0.1532,90717.0,90715.0,4.602e-05]
[1745340891162,0.22046827,90716.0,90715.0,4.602e-05]
[1745340892560,0.22346827,90716.0,90715.0,4.602e-05]
[1745340893737,0.22846827,90716.0,90715.0,0.00104602]
[1745340896229,0.3599682,90716.0,90715.0,0.00104602]
[1745340896444,0.32206827,90716.0,90715.0,0.00104602]
[1745340897780,0.33332609,90716.0,90715.0,0.00104602]
[1745340901047,0.44808203,90716.0,90715.0,0.00104602]
[1745340901248,0.54808203,90716.0,90715.0,0.00104602]
[1745340902031,0.54308203,90716.0,90715.0,4.602e-05]
[1745340903046,0.55108203,90716.0,90715.0,4.602e-05]
[1745340903280,0.54808203,90716.0,90715.0,4.602e-05]
[1745340903521,0.54808203,90716.0,90676.0,0.2081692]
[1745340903522,0.2315813,90681.0,90663.0,0.0004241]
[1745340903745,0.01102693,90687.0,90680.0,7.143e-05]
[1745340903999,0.23156724,90687.0,90680.0,7.143e-05]
[1745340904645,0.001,90681.0,90680.0,7.143e-05]
[1745340905183,0.23156918,90686.0,90680.0,7.143e-05]
[1745340905469,0.01102706,90686.0,90680.0,7.143e-05]
[1745340905691,0.0110273,90684.0,90680.0,7.143e-05]
[1745340905864,0.22055336,90681.0,90680.0,7.143e-05]
[1745340907102,0.22155336,90681.0,90680.0,7.143e-05]
[1745340907625,0.26995336,90681.0,90680.0,7.143e-05]
[1745340909439,0.36995336,90681.0,90680.0,7.143e-05]
[1745340910025,0.36895336,90681.0,90680.0,7.143e-05]
[1745340910242,0.37095336,90681.0,90680.0,7.143e-05]
[1745340910457,0.36895336,90681.0,90680.0,7.143e-05]
[1745340910891,0.37195336,90681.0,90680.0,7.143e-05]
[1745340911133,0.37095336,90681.0,90680.0,7.143e-05]
[1745340911530,0.37395336,90681.0,90680.0,7.143e-05]
[1745340912016,0.37095336,90681.0,90680.0,7.143e-05]
[1745340912431,0.37495336,90681.0,90680.0,7.143e-05]
[1745340912900,0.5359093,90681.0,90680.0,7.143e-05]
[1745340914368,0.74966135,90681.0,90680.0,7.143e-05]
[1745340914583,0.6359093,90681.0,90680.0,7.143e-05]
[1745340917330,1.0439093,90681.0,90680.0,7.143e-05]
[1745340917526,1.0409093,90681.0,90680.0,7.143e-05]
[1745340917733,1.0479093,90681.0,90680.0,7.143e-05]
[1745340917995,0.31377282,90673.0,90672.0,0.0004235]
[1745340918218,0.63864876,90673.0,90672.0,0.00052528]
[1745340919327,0.64364876,90673.0,90672.0,0.00052528]
[1745340919931,0.64664876,90673.0,90672.0,0.00052528]
[1745340923120,1.05864876,90673.0,90672.0,0.00052528]
[1745340927114,1.05564876,90673.0,90672.0,0.00052528]
[1745340927311,1.05064876,90673.0,90672.0,0.00052528]
[1745340927523,1.05564876,90673.0,90672.0,0.00052528]
[1745340927732,1.06164876,90673.0,90672.0,0.00052528]
[1745340934370,1.40164876,90673.0,90672.0,0.00452528]
[1745340934602,1.50164876,90673.0,90672.0,0.00452528]
[1745340936865,1.61540081,90673.0,90672.0,0.00452528]
[1745340937288,1.50164876,90673.0,90672.0,0.00452528]
[1745340944645,1.40832876,90673.0,90672.0,0.00452528]
[1745340944845,1.29457282,90673.0,90672.0,0.00452528]
[1745340945589,1.18357282,90673.0,90672.0,0.00452528]
[1745340945794,0.95457282,90673.0,90672.0,0.00452528]
[1745340956427,0.22059472,90664.0,90656.0,0.10743223]
[1745340956641,0.01102973,90664.0,90659.0,0.00046042]
[1745340956848,0.01102961,90665.0,90659.0,0.00046042]
[1745340957715,0.01102949,90666.0,90659.0,0.00046042]
[1745340957905,0.01102973,90664.0,90659.0,0.00046042]
[1745340958112,0.2316223,90665.0,90659.0,0.00046042]
[1745340958498,0.002,90664.0,90659.0,0.00046042]
[1745340958715,0.002,90664.0,90663.0,0.22059715]
[1745340958909,0.001,90664.0,90663.0,0.22059715]
[1745340959824,0.23160031,90674.0,90663.0,0.22059715]
[1745340959829,0.23160031,90674.0,90665.0,0.22059229]
[1745340960243,0.01102851,90674.0,90666.0,0.2205898]
[1745340960414,0.01102851,90674.0,90665.0,0.20603709]
[1745340961002,0.1,90674.0,90666.0,0.22058768]
[1745340961383,0.01102839,90675.0,90666.0,0.22058768]
[1745340961611,0.1,90675.0,90672.0,0.22057299]
[1745340961861,0.1,90675.0,90664.0,0.22059472]
[1745340962073,0.1,90675.0,90660.0,0.0491]
[1745340962304,0.104,90674.0,90667.0,0.22058708]
[1745340962712,0.1,90673.0,90667.0,0.22058708]
[1745340963053,0.1,90673.0,90666.0,0.22058517]
[1745340963281,0.1,90673.0,90667.0,0.22058732]
[1745340964110,0.1,90673.0,90665.0,0.2205919]
[1745340964491,0.1,90673.0,90666.0,0.22058959]
[1745340964696,0.01102876,90672.0,90664.0,0.001]
[1745340964873,0.01102937,90667.0,90659.0,0.00146042]
[1745340965077,0.01102961,90665.0,90659.0,0.00146042]
[1745340965410,0.01102937,90667.0,90659.0,0.00146042]
[1745340965609,0.23161946,90666.0,90659.0,0.00146042]
[1745340965813,0.01102949,90666.0,90659.0,0.00146042]
[1745340966019,0.01102937,90667.0,90659.0,0.00146042]
[1745340966552,0.01102961,90665.0,90659.0,0.00246042]
[1745340966854,0.23162147,90666.0,90659.0,0.00246042]
[1745340967060,0.01302937,90667.0,90659.0,0.00246042]
[1745340967241,0.23361811,90667.0,90659.0,0.00246042]
[1745340967758,0.22060445,90660.0,90659.0,0.00146042]
[1745340967961,0.22060445,90660.0,90659.0,0.00246042]
[1745340968311,0.22060445,90660.0,90659.0,0.00146042]
[1745340968494,0.22060445,90660.0,90659.0,0.00246042]
[1745340968718,0.22060445,90660.0,90659.0,0.00146042]
[1745340969090,0.22160445,90660.0,90659.0,0.00246042]
[1745340969463,0.22260445,90660.0,90659.0,0.00246042]
[1745340971803,0.75466625,90660.0,90659.0,0.00246042]
[1745340972478,0.0110318,90647.0,90635.0,0.23562885]
[1745340972691,0.22063919,90646.0,90638.0,0.11375594]
[1745340972910,0.01103168,90648.0,90639.0,0.22065556]
[1745340973135,0.23166619,90648.0,90639.0,0.11375594]
[1745340973323,0.23165906,90651.0,90640.0,0.22065101]
[1745340973661,0.23166175,90650.0,90639.0,0.33440937]
[1745340973881,0.01103143,90650.0,90639.0,0.11375594]
[1745340974130,0.01103143,90650.0,90640.0,0.220652]
[1745340974310,0.23166138,90650.0,90640.0,0.220652]
[1745340974521,0.23166138,90650.0,90640.0,0.23218654]
[1745340974775,0.002,90647.0,90640.0,0.23218654]
[1745340974954,0.002,90647.0,90641.0,0.22064854]
[1745340975153,0.001,90647.0,90645.0,0.22064059]
[1745340975386,0.001,90647.0,90646.0,0.00220614]
[1745340975612,0.001,90647.0,90643.0,0.00220619]
[1745340975851,0.001,90647.0,90646.0,0.26623852]
[1745340976085,0.001,90647.0,90646.0,0.39453531]
[1745340976992,0.00146064,90660.0,90653.0,0.22062067]
[1745340977133,0.00146064,90660.0,90654.0,0.00220594]
[1745340978171,0.00246064,90660.0,90653.0,0.22282638]
[1745340978713,0.01349086,90660.0,90649.0,0.22062893]
[1745340978870,0.01103034,90659.0,90650.0,0.11375594]
[1745340979067,0.23409568,90660.0,90650.0,0.33438417]
[1745340979274,0.00246064,90660.0,90651.0,0.22062515]
[1745340979504,0.00246064,90660.0,90651.0,0.33438109]
[1745340979852,0.00246064,90660.0,90652.0,0.22062313]
[1745340980515,0.00146064,90660.0,90652.0,0.22062313]
[1745340980662,0.00246064,90660.0,90652.0,0.22062313]
[1745340980877,0.00246064,90660.0,90646.0,0.05663192]
[1745340980878,0.01103229,90643.0,90635.0,0.0004237]
[1745340981123,0.01103253,90641.0,90635.0,0.0004237]
[1745340981336,0.01103253,90641.0,90635.0,0.11417964]
[1745340981548,0.23168135,90642.0,90635.0,0.11417964]
[1745340982242,0.23168666,90640.0,90635.0,0.01173768]
[1745340982458,0.0110329,90638.0,90635.0,0.01273768]
[1745340982675,0.23169283,90638.0,90635.0,0.01273768]
[1745340983972,0.23169283,90638.0,90635.0,0.01173768]
[1745340984228,0.23169283,90638.0,90635.0,0.0014237]
[1745340984229,0.22066066,90637.0,90635.0,0.0014237]
[1745340984656,0.22066287,90636.0,90635.0,0.0014237]
[1745340985302,0.22066287,90636.0,90635.0,0.0004237]
[1745340985522,0.22066287,90636.0,90635.0,0.0014237]
[1745340986179,0.001,90637.0,90635.0,0.0014237]
[1745340986623,0.22166046,90637.0,90635.0,0.0014237]
[1745340986840,0.22066046,90637.0,90635.0,0.0004237]
[1745340987056,0.23169137,90638.0,90635.0,0.0004237]
[1745340987262,0.002,90636.0,90635.0,0.0014237]
[1745340987472,0.001,90636.0,90635.0,0.0014237]
[1745340987702,0.001,90637.0,90635.0,0.0004237]
[1745340987935,0.002,90637.0,90635.0,0.0014237]
[1745340988394,0.001,90637.0,90635.0,0.0004237]
[1745340988598,0.23269137,90638.0,90635.0,0.0004237]
[1745340988846,0.001,90636.0,90635.0,0.0014237]
[1745340989874,0.001,90637.0,90635.0,0.0004237]
[1745340990080,0.23168846,90639.0,90635.0,0.0004237]
[1745340990284,0.001,90637.0,90635.0,0.0014237]
[1745340990680,0.01103277,90639.0,90635.0,0.0004237]
[1745340990882,0.001,90636.0,90635.0,0.0004237]
[1745340991091,0.001,90636.0,90635.0,0.0014237]
[1745340991298,0.001,90636.0,90635.0,0.38354494]
[1745340991520,0.001,90639.0,90638.0,0.220658]
[1745340991732,0.001,90639.0,90638.0,0.22286431]
[1745340992549,0.001,90639.0,90637.0,0.22065978]
[1745340992865,0.001,90639.0,90635.0,0.11417964]
[1745340993070,0.001,90639.0,90638.0,0.35116111]
[1745340993313,0.001,90639.0,90638.0,0.44405479]
[1745340993929,0.002,90639.0,90638.0,0.44405479]
[1745340994358,0.001,90639.0,90638.0,0.44405479]
[1745340994538,0.003,90639.0,90638.0,0.44405479]
[1745340996281,0.003,90639.0,90638.0,0.39665479]
[1745340996562,0.002,90639.0,90638.0,0.39665479]
[1745340996775,0.003,90639.0,90638.0,0.39965479]
[1745340997194,0.002,90639.0,90638.0,0.39665479]
[1745340997614,0.003,90639.0,90638.0,0.39965479]
[1745340997822,0.002,90639.0,90638.0,0.003]
[1745340998243,0.003,90639.0,90638.0,0.225658]
[1745340998442,0.002,90639.0,90638.0,0.22586437]
[1745340998652,0.002,90639.0,90638.0,0.223658]
[1745340998857,0.002,90639.0,90638.0,0.222658]
[1745340999305,0.003,90639.0,90638.0,0.224658]
[1745341002401,0.22365556,90639.0,90638.0,0.004]
[1745341002848,0.003,90639.0,90638.0,0.004]
[1745341003520,0.22365556,90639.0,90638.0,0.004]
[1745341004020,0.32305556,90639.0,90638.0,0.004]
[1745341004925,0.32205556,90639.0,90638.0,0.002]
[1745341005138,0.22066287,90636.0,90635.0,0.0004237]
[1745341005341,0.26936287,90636.0,90635.0,0.0004237]
[1745341005826,0.26836287,90636.0,90635.0,0.0004237]
[1745341006801,0.27236287,90636.0,90635.0,0.0004237]
[1745341007636,0.27536287,90636.0,90635.0,0.0004237]
[1745341008068,0.26836287,90636.0,90635.0,0.0004237]
[1745341008276,0.27636287,90636.0,90635.0,0.0004237]
[1745341009428,0.28467292,90636.0,90635.0,0.0004237]
[1745341010264,0.01103399,90629.0,90617.0,0.22070709]
[1745341010469,0.01103423,90627.0,90616.0,0.22070934]
[1745341010717,0.01103411,90628.0,90613.0,0.22071784]
[1745341010919,0.01103423,90627.0,90617.0,0.22070895]
[1745341011069,0.0110346,90624.0,90614.0,0.23225684]
[1745341011268,0.22066999,90634.0,90614.0,0.02257664]
[1745341011473,0.001,90629.0,90622.0,0.22069633]
[1745341011705,0.001,90629.0,90623.0,0.0022067]
[1745341011930,0.001,90629.0,90624.0,0.22069209]
[1745341012332,0.01149373,90634.0,90619.0,0.22270346]
[1745341012333,0.001,90628.0,90619.0,0.22270346]
[1745341012532,0.001,90628.0,90620.0,0.11375594]
[1745341012734,0.001,90628.0,90622.0,0.2206946]
[1745341013184,0.001,90629.0,90622.0,0.2206946]
[1745341013335,0.003,90629.0,90623.0,0.22069386]
[1745341014223,0.003,90629.0,90624.0,0.22069138]
[1745341014475,0.001,90628.0,90624.0,0.22069138]
[1745341014648,0.002,90629.0,90625.0,0.22068803]
[1745341014797,0.00046035,90634.0,90625.0,0.22068803]
[1745341015002,0.001,90629.0,90625.0,0.22068803]
[1745341015203,0.001,90628.0,90625.0,0.22068803]
[1745341015479,0.001,90628.0,90622.0,0.2206946]
[1745341015681,0.01149373,90634.0,90624.0,0.22069153]
[1745341015853,0.00046035,90634.0,90624.0,0.22069153]
[1745341016069,0.00446035,90634.0,90624.0,0.22069153]
[1745341016366,0.00246035,90634.0,90624.0,0.22069153]
[1745341016771,0.001,90628.0,90624.0,0.22069153]
[1745341017755,0.002,90628.0,90624.0,0.22069153]
[1745341018334,0.003,90628.0,90624.0,0.22069153]
[1745341018539,0.002,90628.0,90624.0,0.22069153]
[1745341019304,0.002,90628.0,90625.0,0.22068908]
[1745341019729,0.004,90628.0,90625.0,0.22068908]
[1745341020365,0.004,90628.0,90627.0,0.22068478]
[1745341020366,0.002,90628.0,90627.0,0.22068478]
[1745341021016,0.00046035,90634.0,90630.0,0.22067546]
[1745341022030,0.00046035,90634.0,90628.0,0.22068131]
[1745341022348,0.00146035,90634.0,90629.0,0.22067917]
[1745341022951,0.00146035,90634.0,90633.0,0.22067017]
[1745341023371,0.00246035,90634.0,90633.0,0.22067017]
[1745341024237,0.00146035,90634.0,90633.0,0.2228766]
[1745341024442,0.00246035,90634.0,90633.0,0.33663254]
[1745341024658,0.00046035,90639.0,90638.0,0.220658]
[1745341024867,0.00046035,90639.0,90638.0,0.22296627]
[1745341026150,0.00146035,90639.0,90638.0,0.33772221]
[1745341026298,0.00146035,90639.0,90638.0,0.33551586]
[1745341026501,0.00246035,90639.0,90638.0,0.33651586]
[1745341026705,0.00246035,90639.0,90638.0,0.74055671]
[1745341026933,0.00246035,90639.0,90638.0,0.78795671]
[1745341027136,0.00246035,90639.0,90638.0,0.74055671]
[1745341027339,0.00146035,90639.0,90638.0,0.73955671]
[1745341027542,0.00046035,90639.0,90638.0,0.73855671]
[1745341027755,0.00046035,90639.0,90638.0,0.73955671]
[1745341028121,0.00146035,90639.0,90638.0,0.73955671]
[1745341028321,0.00246035,90639.0,90638.0,0.74355671]
[1745341028472,0.00146035,90639.0,90638.0,0.74255671]
[1745341028651,0.00246035,90639.0,90638.0,0.74555671]
[1745341029061,0.00246035,90639.0,90638.0,0.69705671]
[1745341043188,0.00246035,90639.0,90638.0,0.79175671]
[1745341043393,0.0118751,90684.0,90672.0,0.22057526]
[1745341043394,0.0967478,90673.0,90672.0,0.22057526]
[1745341044469,0.0967478,90673.0,90671.0,0.22057646]
[1745341044669,0.0967478,90673.0,90671.0,0.22067761]
[1745341044820,0.1027478,90673.0,90672.0,0.001]
[1745341045004,0.1077478,90673.0,90672.0,0.002]
[1745341045185,0.1027478,90673.0,90672.0,0.001]
[1745341045390,0.0967478,90673.0,90671.0,0.00110192]
[1745341045587,0.1077478,90673.0,90671.0,0.00210192]
[1745341045793,0.0068478,90673.0,90672.0,0.34887205]
[1745341046197,0.0118478,90673.0,90672.0,0.34987205]
[1745341046979,0.0058478,90673.0,90672.0,0.34987205]
[1745341047180,0.0128478,90673.0,90672.0,0.35087205]
[1745341047523,0.0078478,90673.0,90672.0,0.34987205]
[1745341047696,0.0068478,90673.0,90672.0,0.34887205]
[1745341047895,0.0008478,90673.0,90672.0,0.34887205]
[1745341048300,0.0038478,90673.0,90672.0,0.34887205]
[1745341048509,0.0068478,90673.0,90672.0,0.34987205]
[1745341048933,0.0038478,90673.0,90672.0,0.34987205]
[1745341049134,0.0038478,90673.0,90672.0,0.35087205]
[1745341049290,0.0078478,90673.0,90672.0,0.35087205]
[1745341049969,0.0048478,90673.0,90672.0,0.34987205]
[1745341050194,0.0088478,90673.0,90672.0,0.35087205]
[1745341057231,0.0048478,90673.0,90672.0,0.35087205]
[1745341058020,0.0048478,90673.0,90672.0,0.11575594]
[1745341058692,0.0048478,90673.0,90672.0,0.002]
[1745341058693,0.32182062,90673.0,90672.0,0.002]
[1745341059117,0.42182062,90673.0,90672.0,0.002]
[1745341059496,0.32157282,90673.0,90671.0,0.00010192]
[1745341059718,0.0954,90672.0,90671.0,0.00010192]
[1745341059941,0.0954,90672.0,90637.0,0.22065967]
[1745341059942,0.06073241,90642.0,90631.0,0.22067336]
[1745341060152,0.01103253,90641.0,90639.0,0.00010646]
[1745341060351,0.10643241,90642.0,90639.0,0.00010646]
[1745341060352,0.0954,90642.0,90639.0,0.00010646]
[1745341060772,0.0497,90642.0,90639.0,0.00010646]
[1745341060982,0.01103131,90651.0,90639.0,0.00010646]
[1745341060983,0.0488,90652.0,90642.0,0.01103241]
[1745341061188,0.01103131,90651.0,90643.0,0.00220622]
[1745341061418,0.23166069,90650.0,90643.0,0.00220622]
[1745341061626,0.01103192,90646.0,90640.0,0.11375594]
[1745341061833,0.23166069,90650.0,90640.0,0.11375594]
[1745341062052,0.0488,90652.0,90645.0,0.01103204]
[1745341062227,0.01102997,90662.0,90647.0,0.22063597]
[1745341062228,0.01103046,90658.0,90647.0,0.22063597]
[1745341062426,0.23163802,90659.0,90648.0,0.115962]
[1745341062635,0.01103046,90658.0,90648.0,0.115962]
[1745341062768,0.01103034,90659.0,90649.0,0.22063122]
[1745341062973,0.01103034,90659.0,90650.0,0.00220605]
[1745341064332,0.01103034,90659.0,90650.0,0.00320605]
[1745341064676,0.23163764,90659.0,90650.0,0.00320605]
[1745341065178,0.01103058,90657.0,90650.0,0.00320605]
[1745341065373,0.01103058,90657.0,90650.0,0.001]
[1745341065596,0.23164114,90658.0,90650.0,0.001]
[1745341065963,0.23164114,90658.0,90649.0,0.00220606]
[1745341066353,0.003,90657.0,90649.0,0.00220606]
[1745341066737,0.001,90657.0,90649.0,0.00220606]
[1745341067197,0.23364114,90658.0,90649.0,0.00220606]
[1745341067448,0.002,90658.0,90654.0,0.22061669]
[1745341067649,0.002,90658.0,90656.0,0.22061418]
[1745341067891,0.002,90658.0,90657.0,0.00220589]
[1745341068106,0.002,90658.0,90657.0,0.22281764]
[1745341068283,0.0488,90660.0,90659.0,0.22060688]
[1745341068878,0.0491,90666.0,90658.0,0.22281034]
[1745341069090,0.0488,90669.0,90658.0,0.33656628]
[1745341069292,0.1,90668.0,90664.0,0.22059426]
[1745341069544,0.1,90668.0,90664.0,0.23163771]
[1745341069727,0.1,90668.0,90662.0,0.22059811]
[1745341070747,0.003,90666.0,90662.0,0.22059811]
[1745341071357,0.0110301,90661.0,90658.0,0.001]
[1745341071714,0.22060688,90659.0,90658.0,0.001]
[1745341071922,0.01103058,90657.0,90644.0,0.2206417]
[1745341072153,0.01103046,90658.0,90645.0,0.11375594]
[1745341072356,0.01103083,90655.0,90645.0,0.3343954]
[1745341072568,0.01103107,90653.0,90645.0,0.12480164]
[1745341072776,0.01103143,90650.0,90645.0,0.12480164]
[1745341072985,0.01103119,90652.0,90645.0,0.12480164]
[1745341073380,0.23165047,90654.0,90645.0,0.12480164]
[1745341073575,0.22061489,90656.0,90645.0,0.12480164]
[1745341073576,0.0110307,90656.0,90646.0,0.22063793]
[1745341073845,0.01103083,90655.0,90647.0,0.11375594]
[1745341074053,0.23164751,90655.0,90648.0,0.00220609]
[1745341074244,0.23164751,90655.0,90648.0,0.11596203]
[1745341074373,0.0110307,90656.0,90648.0,0.11596203]
[1745341074569,0.2205909,90666.0,90648.0,0.11596203]
[1745341074570,0.26970141,90662.0,90648.0,0.11596203]
[1745341074773,0.01103034,90659.0,90649.0,0.22062944]
[1745341075039,0.01103058,90657.0,90650.0,0.00220606]
[1745341075168,0.01103058,90657.0,90649.0,0.00220607]
[1745341075368,0.06012997,90662.0,90652.0,0.22062172]
[1745341075594,0.0110301,90661.0,90650.0,0.22062879]
[1745341075865,0.28072969,90662.0,90651.0,0.22062545]
[1745341076084,0.001,90659.0,90651.0,0.22062545]
[1745341076520,0.28172969,90662.0,90651.0,0.22062545]
[1745341077125,0.28272969,90662.0,90651.0,0.22062545]
[1745341077334,0.0120301,90661.0,90652.0,0.22062359]
[1745341077546,0.001,90661.0,90652.0,0.22062384]
[1745341077759,0.001,90661.0,90653.0,0.11596188]
[1745341077973,0.001,90661.0,90657.0,0.22061117]
[1745341078180,0.001,90661.0,90654.0,0.00220593]
[1745341078399,0.001,90661.0,90654.0,0.11375594]
[1745341078594,0.001,90659.0,90654.0,0.11375594]
[1745341078937,0.002,90662.0,90654.0,0.33437481]
[1745341079073,0.002,90661.0,90654.0,0.33437481]
[1745341079303,0.002,90661.0,90654.0,0.33437488]
[1745341079736,0.005,90661.0,90654.0,0.33537488]
[1745341079936,0.005,90661.0,90654.0,0.11475594]
[1745341080327,0.005,90661.0,90654.0,0.1169619]
[1745341080568,0.005,90661.0,90654.0,0.11475594]
[1745341081207,0.01103022,90660.0,90654.0,0.001]
[1745341081623,0.23633698,90661.0,90654.0,0.001]
[1745341081811,0.22060468,90660.0,90654.0,0.001]
[1745341082021,0.2316349,90660.0,90654.0,0.001]
[1745341082267,0.23433214,90661.0,90649.0,0.22063117]
[1745341082460,0.22260607,90660.0,90654.0,0.001]
[1745341082671,0.22360607,90660.0,90654.0,0.001]
[1745341083093,0.23263629,90660.0,90650.0,0.00220605]
[1745341083330,0.01103034,90659.0,90650.0,0.00220605]
[1745341083511,0.23263629,90660.0,90650.0,0.22283332]
[1745341084026,0.23163629,90660.0,90650.0,0.22283332]
[1745341084249,0.0120301,90661.0,90649.0,0.33438711]
[1745341084460,0.001,90661.0,90650.0,0.00220605]
[1745341084679,0.0110301,90661.0,90652.0,0.22062349]
[1745341084898,0.001,90660.0,90652.0,0.22062349]
[1745341085112,0.001,90660.0,90649.0,0.11375594]
[1745341085113,0.0462,90659.0,90649.0,0.11375594]
[1745341085548,0.0462,90659.0,90649.0,0.33438655]
[1745341085549,0.05723034,90659.0,90649.0,0.33438655]
[1745341086402,0.0462,90659.0,90651.0,0.22062448]
[1745341088033,0.26780849,90659.0,90649.0,0.11375594]
[1745341088243,0.05823034,90659.0,90649.0,0.11375594]
[1745341088427,0.0462,90659.0,90649.0,0.11375594]
[1745341088744,0.05823034,90659.0,90651.0,0.001]
[1745341088992,0.05923034,90659.0,90651.0,0.001]
[1745341089431,0.0462,90659.0,90649.0,0.11375594]
[1745341089630,0.0472,90659.0,90649.0,0.33438537]
[1745341089882,0.0482,90659.0,90651.0,0.22062583]
[1745341090585,0.0482,90659.0,90652.0,0.22062344]
[1745341090899,0.0482,90659.0,90650.0,0.22062873]
[1745341091116,0.2316439,90657.0,90644.0,0.22064339]
[1745341091336,0.01103046,90658.0,90645.0,0.11375594]
[1745341091529,0.23164092,90658.0,90651.0,0.001]
[1745341091780,0.27983759,90659.0,90651.0,0.001]
[1745341091998,0.01103058,90657.0,90648.0,0.2206293]
[1745341092584,0.01103046,90658.0,90649.0,0.22063121]
[1745341092962,0.01103046,90658.0,90651.0,0.001]
[1745341093369,0.23164035,90658.0,90651.0,0.001]
[1745341094085,0.23164035,90658.0,90648.0,0.2216293]
[1745341094292,0.23164035,90658.0,90648.0,0.001]
[1745341094492,0.23264035,90658.0,90648.0,0.001]
[1745341094694,0.0110307,90656.0,90648.0,0.001]
[1745341094969,0.0110307,90656.0,90647.0,0.2206358]
[1745341095144,0.23164253,90657.0,90647.0,0.2206358]
[1745341095352,0.01203046,90658.0,90648.0,0.22063228]
[1745341095560,0.01103058,90657.0,90648.0,0.22063228]
[1745341095760,0.23164273,90657.0,90648.0,0.001]
[1745341095911,0.23164273,90657.0,90647.0,0.22063572]
[1745341096279,0.2316419,90658.0,90648.0,0.22063255]
[1745341096861,0.2316419,90658.0,90649.0,0.22063114]
[1745341097103,0.2316419,90658.0,90648.0,0.22063255]
[1745341097401,0.0462,90659.0,90648.0,0.12478762]
[1745341097602,0.0462,90668.0,90653.0,0.01103107]
[1745341097773,0.22059708,90664.0,90653.0,0.22061956]
[1745341097966,0.01102997,90662.0,90649.0,0.1247875]
[1745341098334,0.01102973,90664.0,90654.0,0.22061817]
[1745341098335,0.23162462,90664.0,90654.0,0.22061817]
[1745341098618,0.01102985,90663.0,90652.0,0.22062178]
[1745341098844,0.23162234,90665.0,90654.0,0.22061831]
[1745341099066,0.23162234,90665.0,90647.0,0.0110318]
[1745341099067,0.1,90665.0,90655.0,0.12699283]
[1745341099284,0.0462,90668.0,90661.0,0.22060073]